{"text_format":"1","workbook":"xlsx","n_sheets":3,"sheets":["Бланк Методички","Обработка результатов","Печать"],"not_rendered":{"charts":0,"images":1,"macros":1,"external_links":0,"defined_names":0,"comments":0,"pivot_tables":0},"unopened":[],"bounds":{"document_bytes":16777216,"sheet_cells":100000,"rows_first":2000,"rows_last":500,"rows_between":2000,"halvings":0,"cell_chars":16384,"cell_head_chars":4096},"cells_cut":0,"cells_raw":0,"read":"whole","date_system":"1900"}

{"sheet":"Бланк Методички","index":0,"n_rows":104,"n_cols":34,"rows_kept":104,"cut":false,"hidden":false,"merged":[[17,1,17,10],[18,1,18,10],[19,1,19,10],[20,1,20,10],[21,1,21,10],[17,11,17,17],[18,11,18,17],[19,11,19,17],[20,11,20,17],[21,11,21,17],[30,1,30,10],[31,1,31,10],[32,1,32,10],[33,1,33,10],[22,1,22,10],[26,1,26,10],[27,1,27,10],[28,1,28,10],[29,1,29,10],[23,1,23,10],[25,1,25,10],[24,0,24,17],[22,11,22,17],[23,11,23,17],[25,11,25,17],[26,11,26,17],[27,11,27,17],[33,11,33,17],[28,11,28,17],[29,11,29,17],[30,11,30,17],[31,11,31,17],[32,11,32,17],[16,1,16,10],[12,1,12,10],[11,1,11,10],[10,1,10,10],[13,1,13,10],[10,11,10,17],[11,11,11,17],[12,11,12,17],[13,11,13,17],[14,11,14,17],[15,11,15,17],[16,11,16,17],[1,10,1,11],[1,12,1,14],[1,0,1,2],[1,3,1,8],[2,0,2,2],[2,3,2,8],[14,1,14,10],[15,1,15,10],[4,0,7,17],[44,1,44,10],[45,1,45,10],[46,1,46,10],[47,1,47,10],[48,1,48,10],[39,1,39,10],[40,1,40,10],[41,1,41,10],[42,1,42,10],[43,1,43,10],[44,11,44,17],[45,11,45,17],[69,1,69,10],[70,1,70,10],[71,1,71,10],[72,1,72,10],[73,1,73,10],[64,1,64,10],[65,1,65,10],[66,1,66,10],[67,1,67,10],[68,1,68,10],[59,1,59,10],[61,1,61,10],[62,1,62,10],[63,1,63,10],[54,1,54,10],[55,1,55,10],[57,1,57,10],[58,1,58,10],[50,1,50,10],[51,1,51,10],[52,1,52,10],[53,1,53,10],[34,11,34,17],[36,11,36,17],[37,11,37,17],[38,11,38,17],[39,11,39,17],[40,11,40,17],[41,11,41,17],[42,11,42,17],[43,11,43,17],[35,0,35,17],[34,1,34,10],[36,1,36,10],[37,1,37,10],[38,1,38,10],[46,11,46,17],[47,11,47,17],[48,11,48,17],[50,11,50,17],[74,1,74,10],[75,1,75,10],[76,1,76,10],[77,1,77,10],[71,11,71,17],[72,11,72,17],[73,11,73,17],[49,0,49,17],[56,0,56,17],[60,0,60,17],[66,11,66,17],[67,11,67,17],[68,11,68,17],[69,11,69,17],[70,11,70,17],[61,11,61,17],[62,11,62,17],[63,11,63,17],[64,11,64,17],[65,11,65,17],[57,11,57,17],[58,11,58,17],[59,11,59,17],[51,11,51,17],[52,11,52,17],[53,11,53,17],[54,11,54,17],[79,11,79,17],[55,11,55,17],[80,11,80,17],[81,11,81,17],[82,11,82,17],[83,11,83,17],[74,11,74,17],[75,11,75,17],[76,11,76,17],[77,11,77,17],[78,11,78,17],[83,1,83,10],[84,1,84,10],[85,1,85,10],[86,1,86,10],[87,1,87,10],[78,1,78,10],[79,1,79,10],[80,1,80,10],[81,1,81,10],[82,1,82,10],[84,11,84,17],[85,11,85,17],[86,11,86,17],[87,11,87,17],[89,11,89,17],[90,11,90,17],[91,11,91,17],[88,0,88,17],[89,1,89,10],[90,1,90,10],[91,1,91,10]]}
[null,null,null,null,null,null,null,null,null,null,null,null,null,null,null,null,null,null,null,null,null,null,null,null,null,null,null,null,null,null,null,null,10,"5 А"]
["Фамилия, имя",null,null,null,null,null,null,null,null,null,"Класс",null,null,null,null,null,null,null,null,null,null,null,null,null,null,null,null,null,null,null,null,null,11,"5 Б"]
["Возраст",null,null,null,null,null,null,null,null,null,null,null,null,null,null,null,null,null,null,null,null,null,null,null,null,null,null,null,null,null,null,null,12,"5 В"]
[null,null,null,null,null,null,null,null,null,null,null,null,null,null,null,null,null,null,null,null,null,null,null,null,null,null,null,null,null,null,null,null,13]
["Внимательно прочитайте вопросы анкеты и выберите тот вариант ответа, который Вам кажется наиболее точным. \nЕсли Вы не нашли такого варианта ответа, выберите тот который Вам ближе всего.",null,null,null,null,null,null,null,null,null,null,null,null,null,null,null,null,null,null,null,null,null,null,null,null,null,null,null,null,null,null,"Мальчик",14]
[null,null,null,null,null,null,null,null,null,null,null,null,null,null,null,null,null,null,null,null,null,null,null,null,null,null,null,null,null,null,null,"Девочка",15]
[null,null,null,null,null,null,null,null,null,null,null,null,null,null,null,null,null,null,null,null,null,null,null,null,null,null,null,null,null,null,null,null,16]
[]
[]
[null,null,null,null,null,null,null,null,null,null,null,null,null,null,null,null,null,null,null,null,null,null,null,null,null,null,"В основном отлично"]
[6,"Какие оценки Вы обычно получали в школе в прошлом году?",null,null,null,null,null,null,null,null,null,null,null,null,null,null,null,null,null,null,null,null,null,null,null,null,"В основном хорошо"]
[7,"Сколько уроков вы пропустили за последние четыре недели?",null,null,null,null,null,null,null,null,null,null,null,null,null,null,null,null,null,null,null,null,null,null,null,null,"В основном удовлетворительно"]
[8,"В моей школе ученикам предоставлена возможность самоуправления",null,null,null,null,null,null,null,null,null,null,null,null,null,null,null,null,null,null,null,null,null,null,null,null,"В основном неудовлетворительно"]
[9,"Учителя привлекают меня к внеклассной работе",null,null,null,null,null,null,null,null,null,null,null,null,null,null,null,null,null,null,null,null,null,null,null,null,"Ни одного"]
[10,"Мои учителя отмечают мою хорошую учебу и дают мне это понять",null,null,null,null,null,null,null,null,null,null,null,null,null,null,null,null,null,null,null,null,null,null,null,null,"Не больше четырёх"]
[11,"В моей школе открыты широкие возможности для участия в спортивной, клубной и др. общешкольной жизни",null,null,null,null,null,null,null,null,null,null,null,null,null,null,null,null,null,null,null,null,null,null,null,null,"Не больше десяти"]
[12,"В моей школе ученики могут свободно разговаривать один на один с учителем",null,null,null,null,null,null,null,null,null,null,null,null,null,null,null,null,null,null,null,null,null,null,null,null,"Больше десяти"]
[13,"В моей школе я чувствую себя в безопасности",null,null,null,null,null,null,null,null,null,null,null,null,null,null,null,null,null,null,null,null,null,null,null,null,"Нет"]
[14,"Школа информирует моих родителей о моих успехах",null,null,null,null,null,null,null,null,null,null,null,null,null,null,null,null,null,null,null,null,null,null,null,null,"Скорее нет"]
[15,"Учителя поощряют мои старания",null,null,null,null,null,null,null,null,null,null,null,null,null,null,null,null,null,null,null,null,null,null,null,null,"Скорее да"]
[16,"Ваши оценки лучше, чем у большинства ваших одноклассников?",null,null,null,null,null,null,null,null,null,null,null,null,null,null,null,null,null,null,null,null,null,null,null,null,"Да"]
[17,"Мне предоставляются возможности участвовать в общественной деятельности класса",null,null,null,null,null,null,null,null,null,null,null,null,null,null,null,null,null,null,null,null,null,null,null,null,"Почти всегда"]
[18,"Ощущаете ли Вы важность и значимость школьной работы, в которой вы участвуете?",null,null,null,null,null,null,null,null,null,null,null,null,null,null,null,null,null,null,null,null,null,null,null,null,"Часто"]
[19,"Насколько Вам интересны школьные предметы?",null,null,null,null,null,null,null,null,null,null,null,null,null,null,null,null,null,null,null,null,null,null,null,null,"Иногда"]
["Насколько, по Вашему мнению, ошибаются ровесники... ",null,null,null,null,null,null,null,null,null,null,null,null,null,null,null,null,null,null,null,null,null,null,null,null,null,"Никогда"]
[20,"Совершая кражу ",null,null,null,null,null,null,null,null,null,null,null,null,null,null,null,null,null,null,null,null,null,null,null,null,"Очень интересные и развивающие"]
[21,"Провоцируя драку",null,null,null,null,null,null,null,null,null,null,null,null,null,null,null,null,null,null,null,null,null,null,null,null,"Довольно интересные"]
[22,"Прогуливая школу, когда родители об этом не догадываются",null,null,null,null,null,null,null,null,null,null,null,null,null,null,null,null,null,null,null,null,null,null,null,null,"Не очень интересные"]
[23,"Употребляют алкогольные напитки",null,null,null,null,null,null,null,null,null,null,null,null,null,null,null,null,null,null,null,null,null,null,null,null,"Малоинтересные или совсем не интересные"]
[24,"Курят сигареты",null,null,null,null,null,null,null,null,null,null,null,null,null,null,null,null,null,null,null,null,null,null,null,null,"Сильно ошибаются"]
[25,"Курят марихуану или употребляют другие наркотики",null,null,null,null,null,null,null,null,null,null,null,null,null,null,null,null,null,null,null,null,null,null,null,null,"Ошибаются"]
[26,"Считаете ли Вы возможным отстаивать свои интересы с применением физической силы?",null,null,null,null,null,null,null,null,null,null,null,null,null,null,null,null,null,null,null,null,null,null,null,null,"Несильно ошибаются"]
[27,"Согласны ли Вы с утверждением, что цель оправдывает средства? ",null,null,null,null,null,null,null,null,null,null,null,null,null,null,null,null,null,null,null,null,null,null,null,null,"Не ошибаются"]
[28,"Я часто делаю противоположное тому, что говорят мне родители, для того, чтобы разозлить их",null,null,null,null,null,null,null,null,null,null,null,null,null,null,null,null,null,null,null,null,null,null,null,null,"Да"]
[29,"Являетесь ли вы участником какого-либо неформального общественного движения или общественной организации?",null,null,null,null,null,null,null,null,null,null,null,null,null,null,null,null,null,null,null,null,null,null,null,null,"Скорее да"]
["Каковы шансы, что вы будете смотреться крутым, если вы…",null,null,null,null,null,null,null,null,null,null,null,null,null,null,null,null,null,null,null,null,null,null,null,null,null,"Скорее нет"]
[30,"Курите сигарету?",null,null,null,null,null,null,null,null,null,null,null,null,null,null,null,null,null,null,null,null,null,null,null,null,"Нет"]
[31,"Употребляете алкогольные напитки?",null,null,null,null,null,null,null,null,null,null,null,null,null,null,null,null,null,null,null,null,null,null,null,null,"Да"]
[32,"Активно занимаетесь спортом?",null,null,null,null,null,null,null,null,null,null,null,null,null,null,null,null,null,null,null,null,null,null,null,null,"Нет"]
[33,"Хорошо учитесь?",null,null,null,null,null,null,null,null,null,null,null,null,null,null,null,null,null,null,null,null,null,null,null,null,"Никаких или очень мало"]
[34,"Употребляете спайс или другие наркотики?",null,null,null,null,null,null,null,null,null,null,null,null,null,null,null,null,null,null,null,null,null,null,null,null,"Немного"]
[35,"Вы с другом рассматриваете компакт-диски в музыкальном магазине. Вы замечаете, что он/она украла диск. Он/она говорит, улыбаясь, «Какой тебе хочется?  Давай, возьми, пока никто не видит». Никого нет рядом, ни работников, ни других покупателей. Что вы будете делать?",null,null,null,null,null,null,null,null,null,null,null,null,null,null,null,null,null,null,null,null,null,null,null,null,"Довольно большие"]
[36,"8 часов вечера и вы собираетесь пойти к другу, когда ваши родители спрашивают, куда вы идете. Вы говорите: «Я только пойду потусуюсь с друзьями». Они не отпускает вас.  Что вы будете делать?",null,null,null,null,null,null,null,null,null,null,null,null,null,null,null,null,null,null,null,null,null,null,null,null,"Очень большие"]
[37,"Вы посетили другую часть города, и вы не знаете там никого вашего возраста. Вы идете по улице, а незнакомый человек вашего возраста идет вам навстречу. Он примерно вашего роста, и мог бы пройти мимо, но специально вас толкает, так что вы чуть не падаете. Что вы скажете или сделаете?",null,null,null,null,null,null,null,null,null,null,null,null,null,null,null,null,null,null,null,null,null,null,null,null,"Заберете диск и уйдете из магазина"]
[38,"Вы у кого-то на вечеринке и один из ваших друзей предлагает вам алкогольный напиток/наркотик. Что вы скажете или сделаете?",null,null,null,null,null,null,null,null,null,null,null,null,null,null,null,null,null,null,null,null,null,null,null,null,"Пропустите мимо ушей"]
[39,"Как часто вы посещаете церковные службы и другие мероприятия религиозной направленности?",null,null,null,null,null,null,null,null,null,null,null,null,null,null,null,null,null,null,null,null,null,null,null,null,"Скажете, чтобы он/она вернула диск"]
[40,"Важно думать, прежде чем делать что-либо",null,null,null,null,null,null,null,null,null,null,null,null,null,null,null,null,null,null,null,null,null,null,null,null,"Обратите это в шутку, и скажете, чтобы он/она положил(а) диск назад"]
[41,"Считаете ли вы себя «правильным» человеком",null,null,null,null,null,null,null,null,null,null,null,null,null,null,null,null,null,null,null,null,null,null,null,null,"В любом случае пойдете"]
[42,"Я часто действую, не задумываясь о последствиях",null,null,null,null,null,null,null,null,null,null,null,null,null,null,null,null,null,null,null,null,null,null,null,null,"Будете с ними спорить"]
["Как Вы думаете, какова вероятность вреда для людей, если они …",null,null,null,null,null,null,null,null,null,null,null,null,null,null,null,null,null,null,null,null,null,null,null,null,null,"Придумаете причину, скажете, когда вы вернётесь и попросите разрешения идти"]
[43,"Курят одну или больше пачек сигарет в день",null,null,null,null,null,null,null,null,null,null,null,null,null,null,null,null,null,null,null,null,null,null,null,null,"Ничего не скажете и останетесь дома заниматься своими делами"]
[44,"Употребляют спайс",null,null,null,null,null,null,null,null,null,null,null,null,null,null,null,null,null,null,null,null,null,null,null,null,"Сами толкнете человека"]
[45,"Употребляют энергетические напитки",null,null,null,null,null,null,null,null,null,null,null,null,null,null,null,null,null,null,null,null,null,null,null,null,"Скажете «извините меня» и пойдете дальше"]
[46,"Употребляют алкогольные/пивные напитки хотя бы 1 раз в неделю",null,null,null,null,null,null,null,null,null,null,null,null,null,null,null,null,null,null,null,null,null,null,null,null,"Скажете «смотри, куда идешь» и пойдете дальше"]
[47,"Как часто вы курили сигареты в течение прошедших 30 дней?",null,null,null,null,null,null,null,null,null,null,null,null,null,null,null,null,null,null,null,null,null,null,null,null,"Выругаетесь и уйдете"]
[48,"Пробовали ли вы когда-нибудь наркотики?",null,null,null,null,null,null,null,null,null,null,null,null,null,null,null,null,null,null,null,null,null,null,null,null,"Выпьете/пробуете"]
["Если кто-то из ваших близких знакомых сверстников захотел приобрести…",null,null,null,null,null,null,null,null,null,null,null,null,null,null,null,null,null,null,null,null,null,null,null,null,null,"Скажете вашему другу: «Нет, спасибо, я не пью/не употребляю\""]
[49,"пиво, вино или крепкие напитки, легко ли это сделать?",null,null,null,null,null,null,null,null,null,null,null,null,null,null,null,null,null,null,null,null,null,null,null,null,"Скажете: «Нет, спасибо» и уйдете"]
[50,"сигареты, легко ли это сделать?",null,null,null,null,null,null,null,null,null,null,null,null,null,null,null,null,null,null,null,null,null,null,null,null,"Вежливо извинитесь, скажете, что у вас еще есть дела и уйдете"]
[51,"наркотики, легко ли это сделать?",null,null,null,null,null,null,null,null,null,null,null,null,null,null,null,null,null,null,null,null,null,null,null,null,"Никогда"]
["Знаете ли вы людей, которые в прошлом …",null,null,null,null,null,null,null,null,null,null,null,null,null,null,null,null,null,null,null,null,null,null,null,null,null,"Редко"]
[52,"Употребляли марихуану или другие наркотики? ",null,null,null,null,null,null,null,null,null,null,null,null,null,null,null,null,null,null,null,null,null,null,null,null,"1-2 раза в месяц"]
[53,"Продавали или имели дело с наркотиками?",null,null,null,null,null,null,null,null,null,null,null,null,null,null,null,null,null,null,null,null,null,null,null,null,"Примерно раз в неделю или больше"]
[54,"Делали незаконные вещи, которые могли привести к осложнениям в отношениях с полицией?",null,null,null,null,null,null,null,null,null,null,null,null,null,null,null,null,null,null,null,null,null,null,null,null,"Никакой"]
[55,"Если мне придется уехать, я буду скучать о тех людях, которые окружали меня в последнее время",null,null,null,null,null,null,null,null,null,null,null,null,null,null,null,null,null,null,null,null,null,null,null,null,"Небольшой риск"]
[56,"Мои близкие замечают, когда я делаю хорошую работу, и дают мне это понять",null,null,null,null,null,null,null,null,null,null,null,null,null,null,null,null,null,null,null,null,null,null,null,null,"Умеренный риск"]
[57,"Мне территориально нравится район, в котором я живу",null,null,null,null,null,null,null,null,null,null,null,null,null,null,null,null,null,null,null,null,null,null,null,null,"Большой риск"]
[58,"Рядом со мной находятся люди, с которыми я могу разговаривать о важных проблемах",null,null,null,null,null,null,null,null,null,null,null,null,null,null,null,null,null,null,null,null,null,null,null,null,"Вообще не курил(а)"]
[59,"Люди часто меняются в моем окружении",null,null,null,null,null,null,null,null,null,null,null,null,null,null,null,null,null,null,null,null,null,null,null,null,"Меньше одной сигареты в день"]
[60,"Сколько раз, со времен начальной школы, вы меняли место жительства?",null,null,null,null,null,null,null,null,null,null,null,null,null,null,null,null,null,null,null,null,null,null,null,null,"От 1 до 10 сигарет в день"]
[61,"Среди близких вам людей есть те, которые гордятся вами и вашими достижениями?",null,null,null,null,null,null,null,null,null,null,null,null,null,null,null,null,null,null,null,null,null,null,null,null,"Более 10 сигарет в день"]
[62,"Меняли ли вы вуз (техникум, колледж, училищ) в прошлом году?",null,null,null,null,null,null,null,null,null,null,null,null,null,null,null,null,null,null,null,null,null,null,null,null,"Очень легко"]
[63,"Вы чувствуете себя в безопасности, когда находитесь в кругу своих близких и друзей?",null,null,null,null,null,null,null,null,null,null,null,null,null,null,null,null,null,null,null,null,null,null,null,null,"Довольно легко"]
[64,"Сколько раз за всю жизнь вы меняли школу?",null,null,null,null,null,null,null,null,null,null,null,null,null,null,null,null,null,null,null,null,null,null,null,null,"Довольно сложно   "]
[65,"Меняли ли вы местожительство за последний год?",null,null,null,null,null,null,null,null,null,null,null,null,null,null,null,null,null,null,null,null,null,null,null,null,"Очень сложно"]
[66,"Бывают ли в вашей жизни ситуации, которые кажутся вам безвыходными\n",null,null,null,null,null,null,null,null,null,null,null,null,null,null,null,null,null,null,null,null,null,null,null,null,"Никогда"]
[67,"В вашей семье существуют четкие правила",null,null,null,null,null,null,null,null,null,null,null,null,null,null,null,null,null,null,null,null,null,null,null,null,"1 или 2 раза"]
[68,"Были ли когда-нибудь у кого-либо в вашей семье проблемы с алкоголем/наркотиками",null,null,null,null,null,null,null,null,null,null,null,null,null,null,null,null,null,null,null,null,null,null,null,null,"5 или 6 раз"]
[69,"Члены вашей семьи часто обижают и кричат друг на друга",null,null,null,null,null,null,null,null,null,null,null,null,null,null,null,null,null,null,null,null,null,null,null,null,"7 или более"]
[70,"Хотя бы один из ваших родителей всегда знает, где и с кем вы проводите время\n",null,null,null,null,null,null,null,null,null,null,null,null,null,null,null,null,null,null,null,null,null,null,null,null,"Никогда"]
[71,"Ваши близкие/родители настаивают, чтобы вы звонили, когда собираетесь прийти поздно домой\n\n",null,null,null,null,null,null,null,null,null,null,null,null,null,null,null,null,null,null,null,null,null,null,null,null,"1 - 2 раза"]
[72,"Заметят ли ваши близкие/родители, если вы выпьете пива, вина или крепких алкогольных напитков\n",null,null,null,null,null,null,null,null,null,null,null,null,null,null,null,null,null,null,null,null,null,null,null,null,"3 - 4 раза"]
[73,"В вашей семье существует правило на отказ от употребления алкоголя",null,null,null,null,null,null,null,null,null,null,null,null,null,null,null,null,null,null,null,null,null,null,null,null,"5- 6 раз"]
[74,"Ваши близкие замечают, когда вы делаете что-нибудь хорошее и дают вам об этом знать",null,null,null,null,null,null,null,null,null,null,null,null,null,null,null,null,null,null,null,null,null,null,null,null,"7 и более"]
[75,"Как часто ваши родители говорят, что гордятся вашими поступками",null,null,null,null,null,null,null,null,null,null,null,null,null,null,null,null,null,null,null,null,null,null,null,null,"Постоянно"]
[76,"Делитесь ли вы своими мыслями и чувствами с родителями (или лицами, которые их заменяют)",null,null,null,null,null,null,null,null,null,null,null,null,null,null,null,null,null,null,null,null,null,null,null,null,"Часто"]
[77,"Если у вас есть личные проблемы, можете ли вы обратиться к близким/родителям (или лицам, которые их заменяют) за помощью",null,null,null,null,null,null,null,null,null,null,null,null,null,null,null,null,null,null,null,null,null,null,null,null,"Иногда"]
[78,"Что обычно вы предпринимаете в трудных жизненных ситуациях?",null,null,null,null,null,null,null,null,null,null,null,null,null,null,null,null,null,null,null,null,null,null,null,null,"Практически никогда"]
["Решая свои проблемы, учитываете ли вы мнения",null,null,null,null,null,null,null,null,null,null,null,null,null,null,null,null,null,null,null,null,null,null,null,null,null,"Никогда или почти никогда"]
[79,"Родителей",null,null,null,null,null,null,null,null,null,null,null,null,null,null,null,null,null,null,null,null,null,null,null,null,"Иногда"]
[80,"Педагогов",null,null,null,null,null,null,null,null,null,null,null,null,null,null,null,null,null,null,null,null,null,null,null,null,"Часто"]
[71,"Друзей",null,null,null,null,null,null,null,null,null,null,null,null,null,null,null,null,null,null,null,null,null,null,null,null,"Всегда"]
[null,null,null,null,null,null,null,null,null,null,null,null,null,null,null,null,null,null,null,null,null,null,null,null,null,null,"Да"]
[null,null,null,null,null,null,null,null,null,null,null,null,null,null,null,null,null,null,null,null,null,null,null,null,null,null,"Нет"]
[null,null,null,null,null,null,null,null,null,null,null,null,null,null,null,null,null,null,null,null,null,null,null,null,null,null,"Редко"]
[null,null,null,null,null,null,null,null,null,null,null,null,null,null,null,null,null,null,null,null,null,null,null,null,null,null,"Не всегда"]
[null,null,null,null,null,null,null,null,null,null,null,null,null,null,null,null,null,null,null,null,null,null,null,null,null,null,"обращаюсь за помощью к родителям или родственникам"]
[null,null,null,null,null,null,null,null,null,null,null,null,null,null,null,null,null,null,null,null,null,null,null,null,null,null,"обращаюсь за помощью к друзьям"]
[null,null,null,null,null,null,null,null,null,null,null,null,null,null,null,null,null,null,null,null,null,null,null,null,null,null,"обращаюсь за помощью к специалистам"]
[null,null,null,null,null,null,null,null,null,null,null,null,null,null,null,null,null,null,null,null,null,null,null,null,null,null,"рассчитываю только на себя"]
[null,null,null,null,null,null,null,null,null,null,null,null,null,null,null,null,null,null,null,null,null,null,null,null,null,null,"Да"]
[null,null,null,null,null,null,null,null,null,null,null,null,null,null,null,null,null,null,null,null,null,null,null,null,null,null,"Иногда"]
[null,null,null,null,null,null,null,null,null,null,null,null,null,null,null,null,null,null,null,null,null,null,null,null,null,null,"Редко"]
[null,null,null,null,null,null,null,null,null,null,null,null,null,null,null,null,null,null,null,null,null,null,null,null,null,null,"Нет"]

{"sheet":"Обработка результатов","index":1,"n_rows":79,"n_cols":20,"rows_kept":79,"cut":false,"hidden":true,"merged":[[13,13,13,18],[14,13,14,18],[15,13,15,18],[1,13,1,19],[9,13,9,18],[8,13,8,18],[10,13,10,18],[11,13,11,18],[12,13,12,18],[7,13,7,18],[4,13,4,18],[5,13,5,18],[6,13,6,18],[3,13,3,18],[0,6,2,6],[0,7,0,10],[0,0,2,0],[0,1,0,4],[2,13,2,18],[20,13,20,18],[21,13,21,18],[22,13,22,18],[16,13,17,18],[16,19,17,19],[18,13,18,18],[19,13,19,18],[33,13,33,18],[34,13,34,18],[35,13,35,18],[23,19,24,19],[29,13,29,18],[30,13,30,18],[31,13,31,18],[32,13,32,18],[25,13,25,18],[26,13,26,18],[27,13,27,18],[28,13,28,18],[23,13,24,18]]}
["Номер вопроса","Ответы",null,null,null,null,"Номер вопроса","Ответы"]
[null,"Высокий риск","Средний риск","Низкий риск","Риска нет",null,null,"Высокий риск","Средний риск","Низкий риск","Риска нет",null,null,"Факторы риска и защиты"]
[null,"4 балла","3 балла","2 балла","1 балл",null,null,"4 балла","3 балла","2 балла","1 балл",null,null,"Семейный:",null,null,null,null,null,{"$f":"SUM(T4:T7)","v":0}]
[6,"Г","В","Б","А",null,6,{"$f":"IF('Бланк Методички'!L11='Бланк Методички'!AA13,4,)","v":0},{"$f":"IF('Бланк Методички'!L11='Бланк Методички'!AA12,3,)","v":0},{"$f":"IF('Бланк Методички'!L11='Бланк Методички'!AA11,3,)","v":0},{"$f":"IF('Бланк Методички'!L11='Бланк Методички'!AA10,1,)","v":0},{"$f":"SUM(H4:K4)","v":0},null,"Отношения с родителями",null,null,null,null,null,{"$f":"SUM(L34,L72,L73,L74,L75,L76,L77)","v":0}]
[7,"Г*","В","Б","А",null,7,{"$f":"IF('Бланк Методички'!L12='Бланк Методички'!AA17,4,)","v":0},{"$f":"IF('Бланк Методички'!L12='Бланк Методички'!AA16,3,)","v":0},{"$f":"IF('Бланк Методички'!L12='Бланк Методички'!AA15,2,)","v":0},{"$f":"IF('Бланк Методички'!L12='Бланк Методички'!AA14,1,)","v":0},{"$f":"SUM(H5:K5)","v":0},null,"Смена места жительства",null,null,null,null,null,{"$f":"SUM(L58,L63)","v":0}]
[8,"А","Б","В","Г",null,8,{"$f":"IF('Бланк Методички'!L13='Бланк Методички'!AA18,4,)","v":0},{"$f":"IF('Бланк Методички'!L13='Бланк Методички'!AA19,3,)","v":0},{"$f":"IF('Бланк Методички'!L13='Бланк Методички'!AA20,2,)","v":0},{"$f":"IF('Бланк Методички'!L13='Бланк Методички'!AA21,1,)","v":0},0,null,"Система контроля в семье",null,null,null,null,null,{"$f":"SUM(L65,L68,L69,L70,L71)","v":0}]
[9,"А","Б","В","Г",null,9,{"$f":"IF('Бланк Методички'!L14='Бланк Методички'!AA18,4,)","v":0},{"$f":"IF('Бланк Методички'!L14='Бланк Методички'!AA19,3,)","v":0},{"$f":"IF('Бланк Методички'!L14='Бланк Методички'!AA20,2,)","v":0},{"$f":"IF('Бланк Методички'!L14='Бланк Методички'!AA21,1,)","v":0},0,null,"Конфликтность в семье",null,null,null,null,null,{"$f":"L67","v":0}]
[10,"А","Б","В","Г",null,10,{"$f":"IF('Бланк Методички'!L15='Бланк Методички'!AA18,4,)","v":0},{"$f":"IF('Бланк Методички'!$L$15='Бланк Методички'!$AA$19,3,)","v":0},{"$f":"IF('Бланк Методички'!L15='Бланк Методички'!AA20,2,)","v":0},{"$f":"IF('Бланк Методички'!L15='Бланк Методички'!AA21,1,)","v":0},0,null,"Индивидуальные:",null,null,null,null,null,{"$f":"SUM(T9:T15)","v":0}]
[11,"А","Б","В","Г",null,11,{"$f":"IF('Бланк Методички'!L16='Бланк Методички'!AA18,4,)","v":0},{"$f":"IF('Бланк Методички'!L16='Бланк Методички'!$AA$19,3,)","v":0},{"$f":"IF('Бланк Методички'!L16='Бланк Методички'!$AA$20,2,)","v":0},{"$f":"IF('Бланк Методички'!L16='Бланк Методички'!$AA$21,1,)","v":0},0,null,"Успешность",null,null,null,null,null,{"$f":"SUM(L8,L13)","v":0}]
[12,"А","Б","В","Г",null,12,{"$f":"IF('Бланк Методички'!L17='Бланк Методички'!AA18,4,)","v":0},{"$f":"IF('Бланк Методички'!L17='Бланк Методички'!AA19,3,)","v":0},{"$f":"IF('Бланк Методички'!L17='Бланк Методички'!$AA$20,2,)","v":0},{"$f":"IF('Бланк Методички'!L17='Бланк Методички'!$AA$21,1,)","v":0},0,null,"Отношение к употреблению психоактивных веществ",null,null,null,null,null,{"$f":"SUM(L28,L29,L32,L36,L41,L42,L43,L44)","v":0}]
[13,"А","Б","В","Г",null,13,{"$f":"IF('Бланк Методички'!L18='Бланк Методички'!AA18,4,)","v":0},{"$f":"IF('Бланк Методички'!L18='Бланк Методички'!$AA$19,3,)","v":0},{"$f":"IF('Бланк Методички'!L18='Бланк Методички'!AA20,2,)","v":0},{"$f":"IF('Бланк Методички'!L18='Бланк Методички'!AA21,1,)","v":0},0,null,"Отношение к насилию",null,null,null,null,null,{"$f":"SUM(L24,L25,L35)","v":0}]
[14,"А","Б","В","Г",null,14,{"$f":"IF('Бланк Методички'!L19='Бланк Методички'!AA18,4,)","v":0},{"$f":"IF('Бланк Методички'!L19='Бланк Методички'!AA19,3,)","v":0},{"$f":"IF('Бланк Методички'!L19='Бланк Методички'!$AA$20,2,)","v":0},{"$f":"IF('Бланк Методички'!L19='Бланк Методички'!$AA$21,1,)","v":0},0,null,"Протестные реакции",null,null,null,null,null,{"$f":"L26","v":0}]
[15,"А","Б","В","Г",null,15,{"$f":"IF('Бланк Методички'!L20='Бланк Методички'!AA18,4,)","v":0},{"$f":"IF('Бланк Методички'!L20='Бланк Методички'!$AA$19,3,)","v":0},{"$f":"IF('Бланк Методички'!L20='Бланк Методички'!$AA$20,2,)","v":0},{"$f":"IF('Бланк Методички'!L20='Бланк Методички'!$AA$21,1,)","v":0},0,null,"Наличие позитивных жизненных ориентиров",null,null,null,null,null,{"$f":"SUM(L30,L31,L38,L39,L40)","v":0}]
[16,"А","Б","В","Г",null,16,{"$f":"IF('Бланк Методички'!L21='Бланк Методички'!AA18,4,)","v":0},{"$f":"IF('Бланк Методички'!L21='Бланк Методички'!$AA$19,3,)","v":0},{"$f":"IF('Бланк Методички'!L21='Бланк Методички'!$AA$20,2,)","v":0},{"$f":"IF('Бланк Методички'!L21='Бланк Методички'!$AA$21,1,)","v":0},0,null,"Опыт употребления психоактивных веществ",null,null,null,null,null,{"$f":"SUM(L45,L46)","v":0}]
[17,"А","Б","В","Г",null,17,{"$f":"IF('Бланк Методички'!L22='Бланк Методички'!AA18,4,)","v":0},{"$f":"IF('Бланк Методички'!L22='Бланк Методички'!AA19,3,)","v":0},{"$f":"IF('Бланк Методички'!L22='Бланк Методички'!$AA$20,2,)","v":0},{"$f":"IF('Бланк Методички'!L22='Бланк Методички'!$AA$21,1,)","v":0},0,null,"Наличие кризисных ситуаций",null,null,null,null,null,{"$f":"L64","v":0}]
[18,"Г","В","Б","А",null,18,{"$f":"IF('Бланк Методички'!L23='Бланк Методички'!AA25,4,)","v":0},{"$f":"IF('Бланк Методички'!L23='Бланк Методички'!AA24,3,)","v":0},{"$f":"IF('Бланк Методички'!L23='Бланк Методички'!AA23,2,)","v":0},{"$f":"IF('Бланк Методички'!L23='Бланк Методички'!AA22,1,)","v":0},0,null,"Взаимоотношения со сверстниками:",null,null,null,null,null,{"$f":"SUM(T17:T19)","v":0}]
[19,"Г","В","Б","А",null,19,{"$f":"IF('Бланк Методички'!L24='Бланк Методички'!AA29,4,)","v":0},{"$f":"IF('Бланк Методички'!L24='Бланк Методички'!AA28,3,)","v":0},{"$f":"IF('Бланк Методички'!L24='Бланк Методички'!AA27,2,)","v":0},{"$f":"IF('Бланк Методички'!L24='Бланк Методички'!AA26,1,)","v":0},0,null,"Влияние среды. \nАссоциирование с асоциальным поведением",null,null,null,null,null,{"$f":"SUM(L18,L19,L20,L21,L22,L23,L28)","v":0}]
[20,"Г","В","Б","А",null,20,{"$f":"IF('Бланк Методички'!L26='Бланк Методички'!AA33,4,)","v":0},{"$f":"IF('Бланк Методички'!L26='Бланк Методички'!AA32,3,)","v":0},{"$f":"IF('Бланк Методички'!L26='Бланк Методички'!AA31,2,)","v":0},{"$f":"IF('Бланк Методички'!L26='Бланк Методички'!AA30,1,)","v":0},0]
[21,"Г","В","Б","А",null,21,{"$f":"IF('Бланк Методички'!L27='Бланк Методички'!AA33,4,)","v":0},{"$f":"IF('Бланк Методички'!L27='Бланк Методички'!AA32,3,)","v":0},{"$f":"IF('Бланк Методички'!L27='Бланк Методички'!AA31,2,)","v":0},{"$f":"IF('Бланк Методички'!L27='Бланк Методички'!AA30,1,)","v":0},0,null,"Социально - психологический климат микросреды",null,null,null,null,null,{"$f":"SUM(L61,L79)","v":0}]
[22,"Г","В","Б","А",null,22,{"$f":"IF('Бланк Методички'!L28='Бланк Методички'!AA33,4,)","v":0},{"$f":"IF('Бланк Методички'!L28='Бланк Методички'!AA32,3,)","v":0},{"$f":"IF('Бланк Методички'!L28='Бланк Методички'!AA31,2,)","v":0},{"$f":"IF('Бланк Методички'!L28='Бланк Методички'!AA30,1,)","v":0},0,null,"Общественные (социальные):",null,null,null,null,null,{"$f":"SUM(T21:T26)","v":0}]
[23,"Г","В","Б","А",null,23,{"$f":"IF('Бланк Методички'!L29='Бланк Методички'!AA33,4,)","v":0},{"$f":"IF('Бланк Методички'!L29='Бланк Методички'!AA32,3,)","v":0},{"$f":"IF('Бланк Методички'!L29='Бланк Методички'!AA31,2,)","v":0},{"$f":"IF('Бланк Методички'!L29='Бланк Методички'!AA30,1,)","v":0},0,null,"Участие в общественной деятельности",null,null,null,null,null,{"$f":"L27","v":0}]
[24,"Г","В","Б","А",null,24,{"$f":"IF('Бланк Методички'!L30='Бланк Методички'!AA33,4,)","v":0},{"$f":"IF('Бланк Методички'!L30='Бланк Методички'!AA32,3,)","v":0},{"$f":"IF('Бланк Методички'!L30='Бланк Методички'!AA31,2,)","v":0},{"$f":"IF('Бланк Методички'!L30='Бланк Методички'!AA30,1,)","v":0},0,null,"Отношение к религии",null,null,null,null,null,{"$f":"L37","v":0}]
[25,"Г","В","Б","А",null,25,{"$f":"IF('Бланк Методички'!L31='Бланк Методички'!AA33,4,)","v":0},{"$f":"IF('Бланк Методички'!L31='Бланк Методички'!AA32,3,)","v":0},{"$f":"IF('Бланк Методички'!L31='Бланк Методички'!AA31,2,)","v":0},{"$f":"IF('Бланк Методички'!L31='Бланк Методички'!AA30,1,)","v":0},0,null,"Доступность психоактивных веществ",null,null,null,null,null,{"$f":"SUM(L47,L48,L49)","v":0}]
[26,"А","Б","В","Г",null,26,{"$f":"IF('Бланк Методички'!L32='Бланк Методички'!AA34,4,)","v":0},{"$f":"IF('Бланк Методички'!L32='Бланк Методички'!AA35,3,)","v":0},{"$f":"IF('Бланк Методички'!L32='Бланк Методички'!AA36,2,)","v":0},{"$f":"IF('Бланк Методички'!L32='Бланк Методички'!AA37,1,)","v":0},0,null,"Социальная «близость» с потребителями психоактивных веществ",null,null,null,null,null,{"$f":"SUM(L50,L51,L52,L66)","v":0}]
[27,"А","Б","В","Г",null,27,{"$f":"IF('Бланк Методички'!$L$33='Бланк Методички'!$AA34,4,)","v":0},{"$f":"IF('Бланк Методички'!$L$33='Бланк Методички'!$AA35,3,)","v":0},{"$f":"IF('Бланк Методички'!$L$33='Бланк Методички'!$AA36,2,)","v":0},{"$f":"IF('Бланк Методички'!$L$33='Бланк Методички'!$AA37,1,)","v":0},0]
[28,"А","Б","В","Г",null,28,{"$f":"IF('Бланк Методички'!$L$34='Бланк Методички'!$AA34,4,)","v":0},{"$f":"IF('Бланк Методички'!$L$34='Бланк Методички'!$AA35,3,)","v":0},{"$f":"IF('Бланк Методички'!$L$34='Бланк Методички'!$AA36,2,)","v":0},{"$f":"IF('Бланк Методички'!$L$34='Бланк Методички'!$AA37,1,)","v":0},0,null,"Связь с микросоциумом",null,null,null,null,null,{"$f":"SUM(L53,L54,L55,L56,L57,L59)","v":0}]
[29,"А","-","-","Б**",null,29,{"$f":"IF('Бланк Методички'!L35='Бланк Методички'!AA38,4,)","v":0},"-","-",{"$f":"IF('Бланк Методички'!L35='Бланк Методички'!AA39,1,)","v":0},0,null,"Школьные:",null,null,null,null,null,{"$f":"SUM(T28:T36)","v":0}]
[30,"Г","В","Б","А",null,30,{"$f":"IF('Бланк Методички'!L37='Бланк Методички'!AA43,4,)","v":0},{"$f":"IF('Бланк Методички'!L37='Бланк Методички'!AA42,3,)","v":0},{"$f":"IF('Бланк Методички'!L37='Бланк Методички'!AA41,2,)","v":0},{"$f":"IF('Бланк Методички'!L37='Бланк Методички'!AA40,1,)","v":0},0,null,"Успеваемость",null,null,null,null,null,{"$f":"SUM(L4,L14)","v":0}]
[31,"Г","В","Б","А",null,31,{"$f":"IF('Бланк Методички'!L38='Бланк Методички'!AA43,4,)","v":0},{"$f":"IF('Бланк Методички'!L38='Бланк Методички'!AA42,3,)","v":0},{"$f":"IF('Бланк Методички'!L38='Бланк Методички'!AA41,2,)","v":0},{"$f":"IF('Бланк Методички'!L38='Бланк Методички'!AA40,1,)","v":0},0,null,"Посещаемость",null,null,null,null,null,{"$f":"L5","v":0}]
[32,"А","Б","В","Г",null,32,{"$f":"IF('Бланк Методички'!L39='Бланк Методички'!AA40,4,)","v":0},{"$f":"IF('Бланк Методички'!L39='Бланк Методички'!AA41,3,)","v":0},{"$f":"IF('Бланк Методички'!L39='Бланк Методички'!AA42,2,)","v":0},{"$f":"IF('Бланк Методички'!L39='Бланк Методички'!AA43,1,)","v":0},0,null,"Участие в школьном самоуправлении",null,null,null,null,null,{"$f":"SUM(L6,L7,L15,L16)","v":0}]
[33,"А","Б","В","Г",null,33,{"$f":"IF('Бланк Методички'!$L$40='Бланк Методички'!$AA40,4,)","v":0},{"$f":"IF('Бланк Методички'!$L$40='Бланк Методички'!$AA41,3,)","v":0},{"$f":"IF('Бланк Методички'!$L$40='Бланк Методички'!$AA42,3,)","v":0},{"$f":"IF('Бланк Методички'!$L$40='Бланк Методички'!$AA43,1,)","v":0},0,null,"Организация школьного досуга",null,null,null,null,null,{"$f":"L9","v":0}]
[34,"Г","В","Б","А",null,34,{"$f":"IF('Бланк Методички'!$L$41='Бланк Методички'!$AA$43,4,)","v":0},{"$f":"IF('Бланк Методички'!$L$41='Бланк Методички'!$AA$42,3,)","v":0},{"$f":"IF('Бланк Методички'!$L$41='Бланк Методички'!$AA$41,2,)","v":0},{"$f":"IF('Бланк Методички'!$L$41='Бланк Методички'!$AA$40,1,)","v":0},0,null,"Отношения с учителями",null,null,null,null,null,{"$f":"SUM(L10,L78)","v":0}]
[35,"А","Б","В","Г",null,35,{"$f":"IF('Бланк Методички'!$L$42='Бланк Методички'!$AA$44,4,)","v":0},{"$f":"IF('Бланк Методички'!$L$42='Бланк Методички'!$AA$45,3,)","v":0},{"$f":"IF('Бланк Методички'!$L$42='Бланк Методички'!$AA$46,2,)","v":0},{"$f":"IF('Бланк Методички'!$L$42='Бланк Методички'!$AA$47,1,)","v":0},0,null,"Социально-психологический климат",null,null,null,null,null,{"$f":"L11","v":0}]
[36,"А","Б","В","Г",null,36,{"$f":"IF('Бланк Методички'!$L$43='Бланк Методички'!$AA$48,4,)","v":0},{"$f":"IF('Бланк Методички'!$L$43='Бланк Методички'!$AA$49,3,)","v":0},{"$f":"IF('Бланк Методички'!$L$43='Бланк Методички'!$AA$50,2,)","v":0},{"$f":"IF('Бланк Методички'!$L$43='Бланк Методички'!$AA$51,1,)","v":0},0,null,"Интерес к учебе",null,null,null,null,null,{"$f":"L17","v":0}]
[37,"А","Г","В","Б",null,37,{"$f":"IF('Бланк Методички'!$L$44='Бланк Методички'!$AA52,4,)","v":0},{"$f":"IF('Бланк Методички'!$L$44='Бланк Методички'!$AA53,3,)","v":0},{"$f":"IF('Бланк Методички'!$L$44='Бланк Методички'!$AA54,2,)","v":0},{"$f":"IF('Бланк Методички'!$L$44='Бланк Методички'!$AA55,1,)","v":0},0,null,"Смена школы",null,null,null,null,null,{"$f":"SUM(L60,L62)","v":0}]
[38,"А","-","-","Б/В/Г",null,38,{"$f":"IF('Бланк Методички'!L45='Бланк Методички'!AA56,4,0)","v":0},"-","-",{"$f":"IF('Бланк Методички'!L45='Бланк Методички'!AA57,1,IF('Бланк Методички'!L45='Бланк Методички'!AA58,1,IF('Бланк Методички'!L45='Бланк Методички'!AA59,1,)))","v":0},0,null,"Связь семьи и школы (вопрос 14)",null,null,null,null,null,{"$f":"L12","v":0}]
[39,"А","Б","В","Г",null,39,{"$f":"IF('Бланк Методички'!$L$46='Бланк Методички'!$AA60,4,)","v":0},{"$f":"IF('Бланк Методички'!$L$46='Бланк Методички'!$AA61,3,)","v":0},{"$f":"IF('Бланк Методички'!$L$46='Бланк Методички'!$AA62,2,)","v":0},{"$f":"IF('Бланк Методички'!$L$46='Бланк Методички'!$AA63,1,)","v":0},0]
[40,"Г","В","Б","А",null,40,{"$f":"IF('Бланк Методички'!$L$47='Бланк Методички'!$AA$67,4,)","v":0},{"$f":"IF('Бланк Методички'!$L$47='Бланк Методички'!$AA$66,3,)","v":0},{"$f":"IF('Бланк Методички'!$L$47='Бланк Методички'!$AA$65,2,)","v":0},{"$f":"IF('Бланк Методички'!$L$47='Бланк Методички'!$AA$64,1,)","v":0},0]
[41,"Г","В","Б","А",null,41,{"$f":"IF('Бланк Методички'!$L$48='Бланк Методички'!$AA67,4,)","v":0},{"$f":"IF('Бланк Методички'!$L$48='Бланк Методички'!$AA66,3,)","v":0},{"$f":"IF('Бланк Методички'!$L$48='Бланк Методички'!$AA65,2,)","v":0},{"$f":"IF('Бланк Методички'!$L$48='Бланк Методички'!$AA64,1,)","v":0},0]
[42,"А","Б","В","Г",null,42,{"$f":"IF('Бланк Методички'!$L$49='Бланк Методички'!$AA64,4,)","v":0},{"$f":"IF('Бланк Методички'!$L$49='Бланк Методички'!$AA65,3,)","v":0},{"$f":"IF('Бланк Методички'!$L$49='Бланк Методички'!$AA66,2,)","v":0},{"$f":"IF('Бланк Методички'!$L$49='Бланк Методички'!$AA67,1,)","v":0},0]
[43,"А","Б","В","Г",null,43,{"$f":"IF('Бланк Методички'!$L$51='Бланк Методички'!$AA64,4,)","v":0},{"$f":"IF('Бланк Методички'!$L$51='Бланк Методички'!$AA65,3,)","v":0},{"$f":"IF('Бланк Методички'!$L$51='Бланк Методички'!$AA66,2,)","v":0},{"$f":"IF('Бланк Методички'!$L$51='Бланк Методички'!$AA67,1,)","v":0},0]
[44,"А","Б","В","Г",null,44,{"$f":"IF('Бланк Методички'!$L$52='Бланк Методички'!$AA$64,4,)","v":0},{"$f":"IF('Бланк Методички'!$L$52='Бланк Методички'!$AA$65,3,)","v":0},{"$f":"IF('Бланк Методички'!$L$52='Бланк Методички'!$AA$66,2,)","v":0},{"$f":"IF('Бланк Методички'!$L$52='Бланк Методички'!$AA$67,1,)","v":0},0]
[45,"А","Б","В","Г",null,45,{"$f":"IF('Бланк Методички'!$L$53='Бланк Методички'!$AA$64,4,)","v":0},{"$f":"IF('Бланк Методички'!$L$53='Бланк Методички'!$AA$65,3,)","v":0},{"$f":"IF('Бланк Методички'!$L$53='Бланк Методички'!$AA$66,2,)","v":0},{"$f":"IF('Бланк Методички'!$L$53='Бланк Методички'!$AA$67,1,)","v":0},0]
[46,"А","Б","В","Г",null,46,{"$f":"IF('Бланк Методички'!$L$54='Бланк Методички'!$AA$64,4,)","v":0},{"$f":"IF('Бланк Методички'!$L$54='Бланк Методички'!$AA$65,3,)","v":0},{"$f":"IF('Бланк Методички'!$L$54='Бланк Методички'!$AA$66,2,)","v":0},{"$f":"IF('Бланк Методички'!$L$54='Бланк Методички'!$AA$67,1,)","v":0},0]
[47,"Г","В","Б","А",null,47,{"$f":"IF('Бланк Методички'!L55='Бланк Методички'!AA71,4,)","v":0},{"$f":"IF('Бланк Методички'!L55='Бланк Методички'!AA70,3,)","v":0},{"$f":"IF('Бланк Методички'!L55='Бланк Методички'!AA69,2,)","v":0},{"$f":"IF('Бланк Методички'!L55='Бланк Методички'!AA68,1,)","v":0},0]
[48,"Б","-","-","А",null,48,{"$f":"IF('Бланк Методички'!L56='Бланк Методички'!AA39,4,)","v":0},"-","-",{"$f":"IF('Бланк Методички'!L56='Бланк Методички'!AA38,1,)","v":0},0]
[49,"А","Б","В","Г",null,49,{"$f":"IF('Бланк Методички'!L58='Бланк Методички'!AA72,4,)","v":0},{"$f":"IF('Бланк Методички'!L58='Бланк Методички'!AA73,3,)","v":0},{"$f":"IF('Бланк Методички'!L58='Бланк Методички'!AA74,2,)","v":0},{"$f":"IF('Бланк Методички'!L58='Бланк Методички'!AA75,1,)","v":0},0]
[50,"А","Б","В","Г",null,50,{"$f":"IF('Бланк Методички'!L59='Бланк Методички'!AA72,4,)","v":0},{"$f":"IF('Бланк Методички'!L59='Бланк Методички'!AA73,3,)","v":0},{"$f":"IF('Бланк Методички'!L59='Бланк Методички'!AA74,2,)","v":0},{"$f":"IF('Бланк Методички'!L59='Бланк Методички'!AA75,1,)","v":0},0]
[51,"А","Б","В","Г",null,51,{"$f":"IF('Бланк Методички'!L60='Бланк Методички'!AA72,4,)","v":0},{"$f":"IF('Бланк Методички'!L60='Бланк Методички'!AA73,3,)","v":0},{"$f":"IF('Бланк Методички'!L60='Бланк Методички'!AA74,2,)","v":0},{"$f":"IF('Бланк Методички'!L60='Бланк Методички'!AA75,1,)","v":0},0]
[52,"А","-","-","Б",null,52,{"$f":"IF('Бланк Методички'!L62='Бланк Методички'!AA38,4,)","v":0},"-","-",{"$f":"IF('Бланк Методички'!L62='Бланк Методички'!AA39,1,)","v":0},0]
[53,"А","-","-","Б",null,53,{"$f":"IF('Бланк Методички'!L63='Бланк Методички'!AA38,4,)","v":0},"-","-",{"$f":"IF('Бланк Методички'!L63='Бланк Методички'!AA39,1,)","v":0},0]
[54,"А","-","-","Б",null,54,{"$f":"IF('Бланк Методички'!L64='Бланк Методички'!AA38,4,)","v":0},"-","-",{"$f":"IF('Бланк Методички'!L64='Бланк Методички'!AA39,1,)","v":0},0]
[55,"А","Б","В","Г",null,55,{"$f":"IF('Бланк Методички'!L65='Бланк Методички'!AA18,4,)","v":0},{"$f":"IF('Бланк Методички'!L65='Бланк Методички'!AA19,3,)","v":0},{"$f":"IF('Бланк Методички'!L65='Бланк Методички'!AA20,2,)","v":0},{"$f":"IF('Бланк Методички'!L65='Бланк Методички'!AA21,1,)","v":0},0]
[56,"А","Б","В","Г",null,56,{"$f":"IF('Бланк Методички'!L66='Бланк Методички'!AA18,4,)","v":0},{"$f":"IF('Бланк Методички'!L66='Бланк Методички'!AA19,3,)","v":0},{"$f":"IF('Бланк Методички'!L66='Бланк Методички'!AA20,2,)","v":0},{"$f":"IF('Бланк Методички'!L66='Бланк Методички'!AA21,1,)","v":0},0]
[57,"А","Б","В","Г",null,57,{"$f":"IF('Бланк Методички'!L67='Бланк Методички'!AA18,4,)","v":0},{"$f":"IF('Бланк Методички'!L67='Бланк Методички'!AA19,3,)","v":0},{"$f":"IF('Бланк Методички'!L67='Бланк Методички'!AA20,2,)","v":0},{"$f":"IF('Бланк Методички'!L67='Бланк Методички'!AA21,1,)","v":0},0]
[58,"А","Б","В","Г",null,58,{"$f":"IF('Бланк Методички'!L68='Бланк Методички'!AA18,4,)","v":0},{"$f":"IF('Бланк Методички'!L68='Бланк Методички'!AA19,3,)","v":0},{"$f":"IF('Бланк Методички'!L68='Бланк Методички'!AA20,2,)","v":0},{"$f":"IF('Бланк Методички'!L68='Бланк Методички'!AA21,1,)","v":0},0]
[59,"Г","В","Б","А",null,59,{"$f":"IF('Бланк Методички'!L69='Бланк Методички'!AA21,4,)","v":0},{"$f":"IF('Бланк Методички'!L69='Бланк Методички'!AA20,3,)","v":0},{"$f":"IF('Бланк Методички'!L69='Бланк Методички'!AA19,2,)","v":0},{"$f":"IF('Бланк Методички'!L69='Бланк Методички'!AA18,1,)","v":0},0]
[60,"Г","В","Б","А",null,60,{"$f":"IF('Бланк Методички'!L70='Бланк Методички'!AA79,4,)","v":0},{"$f":"IF('Бланк Методички'!L70='Бланк Методички'!AA78,3,)","v":0},{"$f":"IF('Бланк Методички'!L70='Бланк Методички'!AA77,2,)","v":0},{"$f":"IF('Бланк Методички'!L70='Бланк Методички'!AA76,1,)","v":0},0]
[61,"Г","В","Б","А",null,61,{"$f":"IF('Бланк Методички'!L71='Бланк Методички'!AA37,4,)","v":0},{"$f":"IF('Бланк Методички'!L71='Бланк Методички'!AA36,3,)","v":0},{"$f":"IF('Бланк Методички'!L71='Бланк Методички'!AA35,2,)","v":0},{"$f":"IF('Бланк Методички'!L71='Бланк Методички'!AA34,1,)","v":0},0]
[62,"А","-","-","Б",null,62,{"$f":"IF('Бланк Методички'!L72='Бланк Методички'!AA38,4,)","v":0},"-","-",{"$f":"IF('Бланк Методички'!L72='Бланк Методички'!AA39,1,)","v":0},0]
[63,"Г","В","Б","А",null,63,{"$f":"IF('Бланк Методички'!L73='Бланк Методички'!AA37,4,)","v":0},{"$f":"IF('Бланк Методички'!L73='Бланк Методички'!AA36,3,)","v":0},{"$f":"IF('Бланк Методички'!L73='Бланк Методички'!AA35,2,)","v":0},{"$f":"IF('Бланк Методички'!L73='Бланк Методички'!AA34,1,)","v":0},0]
[64,"Г","В","Б","А",null,64,{"$f":"IF('Бланк Методички'!L74='Бланк Методички'!AA83,4,)","v":0},{"$f":"IF('Бланк Методички'!L74='Бланк Методички'!AA82,3,)","v":0},{"$f":"IF('Бланк Методички'!L74='Бланк Методички'!AA81,2,)","v":0},{"$f":"IF('Бланк Методички'!L74='Бланк Методички'!AA80,1,)","v":0},0]
[65,"А","-","-","Б",null,65,{"$f":"IF('Бланк Методички'!L75='Бланк Методички'!AA38,4,)","v":0},"-","-",{"$f":"IF('Бланк Методички'!L75='Бланк Методички'!AA39,1,)","v":0},0]
[66,"А","Б","В","Г",null,66,{"$f":"IF('Бланк Методички'!L76='Бланк Методички'!AA85,4,)","v":0},{"$f":"IF('Бланк Методички'!L76='Бланк Методички'!AA86,3,)","v":0},{"$f":"IF('Бланк Методички'!L76='Бланк Методички'!AA87,2,)","v":0},{"$f":"IF('Бланк Методички'!L76='Бланк Методички'!AA88,1,)","v":0},0]
[67,"Г","В","Б","А",null,67,{"$f":"IF('Бланк Методички'!L77='Бланк Методички'!AA37,4,)","v":0},{"$f":"IF('Бланк Методички'!L77='Бланк Методички'!AA36,3,)","v":0},{"$f":"IF('Бланк Методички'!L77='Бланк Методички'!AA35,2,)","v":0},{"$f":"IF('Бланк Методички'!L77='Бланк Методички'!AA34,1,)","v":0},0]
[68,"А","-","-","Б",null,68,{"$f":"IF('Бланк Методички'!L78='Бланк Методички'!AA38,4,)","v":0},"-","-",{"$f":"IF('Бланк Методички'!L78='Бланк Методички'!AA39,1,)","v":0},0]
[69,"Г","В","Б","А",null,69,{"$f":"IF('Бланк Методички'!L79='Бланк Методички'!AA21,4,)","v":0},{"$f":"IF('Бланк Методички'!L79='Бланк Методички'!AA20,4,)","v":0},{"$f":"IF('Бланк Методички'!L79='Бланк Методички'!AA19,2,)","v":0},{"$f":"IF('Бланк Методички'!L79='Бланк Методички'!AA18,1,)","v":0},0]
[70,"А","Б","В","Г",null,70,{"$f":"IF('Бланк Методички'!L80='Бланк Методички'!AA18,4,)","v":0},{"$f":"IF('Бланк Методички'!L80='Бланк Методички'!AA19,3,)","v":0},{"$f":"IF('Бланк Методички'!L80='Бланк Методички'!AA20,2,)","v":0},{"$f":"IF('Бланк Методички'!L80='Бланк Методички'!AA21,1,)","v":0},0]
[71,"А","Б","В","Г",null,71,{"$f":"IF('Бланк Методички'!L81='Бланк Методички'!AA18,4,)","v":0},{"$f":"IF('Бланк Методички'!L81='Бланк Методички'!AA19,3,)","v":0},{"$f":"IF('Бланк Методички'!L81='Бланк Методички'!AA20,2,)","v":0},{"$f":"IF('Бланк Методички'!L81='Бланк Методички'!AA21,1,)","v":0},{"$f":"SUM(H69:K69)","v":0}]
[72,"А","Б","В","Г",null,72,{"$f":"IF('Бланк Методички'!L82='Бланк Методички'!AA18,4,)","v":0},{"$f":"IF('Бланк Методички'!L82='Бланк Методички'!AA19,3,)","v":0},{"$f":"IF('Бланк Методички'!L82='Бланк Методички'!AA20,2,)","v":0},{"$f":"IF('Бланк Методички'!L82='Бланк Методички'!AA21,1,)","v":0},0]
[73,"А","Б","В","Г",null,73,{"$f":"IF('Бланк Методички'!L83='Бланк Методички'!AA18,4,)","v":0},{"$f":"IF('Бланк Методички'!L83='Бланк Методички'!AA19,3,)","v":0},{"$f":"IF('Бланк Методички'!L83='Бланк Методички'!AA20,2,)","v":0},{"$f":"IF('Бланк Методички'!L83='Бланк Методички'!AA21,1,)","v":0},0]
[74,"А","Б","В","Г",null,74,{"$f":"IF('Бланк Методички'!L84='Бланк Методички'!AA89,4,)","v":0},{"$f":"IF('Бланк Методички'!L84='Бланк Методички'!AA90,4,)","v":0},{"$f":"IF('Бланк Методички'!L84='Бланк Методички'!AA91,2,)","v":0},{"$f":"IF('Бланк Методички'!L84='Бланк Методички'!AA92,1,)","v":0},0]
[75,"А","Б","В","Г",null,75,{"$f":"IF('Бланк Методички'!L85='Бланк Методички'!AA90,4,)","v":0},{"$f":"IF('Бланк Методички'!L85='Бланк Методички'!AA90,4,)","v":0},{"$f":"IF('Бланк Методички'!L85='Бланк Методички'!AA91,2,)","v":0},{"$f":"IF('Бланк Методички'!L85='Бланк Методички'!AA92,1,)","v":0},0]
[76,"Б","В","Г","А",null,76,{"$f":"IF('Бланк Методички'!L86='Бланк Методички'!AA94,4,)","v":0},{"$f":"IF('Бланк Методички'!L86='Бланк Методички'!AA95,3,)","v":0},{"$f":"IF('Бланк Методички'!L86='Бланк Методички'!AA96,2,)","v":0},{"$f":"IF('Бланк Методички'!L86='Бланк Методички'!AA93,1,)","v":0},0]
[77,"Б","В","Г","А",null,77,{"$f":"IF('Бланк Методички'!L87='Бланк Методички'!AA94,4,)","v":0},{"$f":"IF('Бланк Методички'!L87='Бланк Методички'!AA95,3,)","v":0},{"$f":"IF('Бланк Методички'!L87='Бланк Методички'!AA96,2,)","v":0},{"$f":"IF('Бланк Методички'!L87='Бланк Методички'!AA93,1,)","v":0},0]
[78,"Г","-","-","А/Б/В",null,78,{"$f":"IF('Бланк Методички'!L88='Бланк Методички'!AA100,4,)","v":0},"-","-",{"$f":"IF('Бланк Методички'!L88='Бланк Методички'!AA97,1,IF('Бланк Методички'!L88='Бланк Методички'!AA98,1,IF('Бланк Методички'!L88='Бланк Методички'!AA99,1,)))","v":0},0]
[79,"Г","В","Б","А",null,79,{"$f":"IF('Бланк Методички'!L90='Бланк Методички'!AA104,4,)","v":0},{"$f":"IF('Бланк Методички'!L90='Бланк Методички'!AA103,3,)","v":0},{"$f":"IF('Бланк Методички'!L90='Бланк Методички'!AA102,2,)","v":0},{"$f":"IF('Бланк Методички'!L90='Бланк Методички'!AA101,1,)","v":0},0]
[80,"Г","В","Б","А",null,80,{"$f":"IF('Бланк Методички'!L91='Бланк Методички'!AA104,4,)","v":0},{"$f":"IF('Бланк Методички'!L91='Бланк Методички'!AA103,3,)","v":0},{"$f":"IF('Бланк Методички'!L91='Бланк Методички'!AA102,2,)","v":0},{"$f":"IF('Бланк Методички'!L91='Бланк Методички'!AA101,1,)","v":0},0]
[81,"Г","В","Б","А",null,81,{"$f":"IF('Бланк Методички'!L92='Бланк Методички'!AA104,4,)","v":0},{"$f":"IF('Бланк Методички'!L92='Бланк Методички'!AA103,3,)","v":0},{"$f":"IF('Бланк Методички'!L92='Бланк Методички'!AA102,2,)","v":0},{"$f":"IF('Бланк Методички'!L92='Бланк Методички'!AA101,1,)","v":0},0]

{"sheet":"Печать","index":2,"n_rows":40,"n_cols":8,"rows_kept":40,"cut":false,"hidden":false,"merged":[[0,0,0,8],[2,7,2,8],[3,7,3,8],[2,1,2,5],[3,1,3,5],[30,0,30,5],[31,0,31,5],[32,0,32,5],[33,0,33,5],[34,0,34,5],[25,0,25,5],[17,0,17,5],[18,0,18,5],[20,0,20,5],[10,0,10,5],[12,0,12,5],[13,0,13,5],[14,0,14,5],[15,0,15,5],[16,0,16,5],[12,7,18,8],[19,7,19,8],[19,0,19,6],[22,7,22,8],[22,0,22,6],[5,0,5,8],[6,7,6,8],[6,0,6,6],[7,7,10,8],[11,7,11,8],[11,0,11,6],[7,0,7,5],[8,0,8,5],[9,0,9,5],[39,0,39,3],[39,5,39,8],[21,0,21,5],[20,7,21,8],[28,7,28,8],[28,0,28,6],[29,7,37,8],[35,0,35,5],[36,0,36,5],[37,0,37,5],[23,7,27,8],[27,0,27,5],[29,0,29,5],[26,0,26,5],[23,0,23,5],[24,0,24,5]]}
["Исходная оценка наркотизации"]
[]
["ФИО",{"$f":"'Бланк Методички'!D2","v":0},null,null,null,null,"Класс",{"$f":"'Бланк Методички'!M2","v":0}]
["Возраст",{"$f":"CONCATENATE('Бланк Методички'!D3, \" лет\")","v":" лет"},null,null,null,null,"Дата",{"$f":"TODAY()","v":"2018-01-31"}]
[]
["Факторы риска и защиты"]
["Семейный:",null,null,null,null,null,null,{"$f":"'Обработка результатов'!T3","v":0}]
["Отношения с родителями",null,null,null,null,null,{"$f":"'Обработка результатов'!T4","v":0},{"$f":"IF(AND(H7>=15,H7<=26),\"Низкий риск\",IF(AND(H7>=27,H7<=32),\"Средний риск\",IF(AND(H7>=33,H7<=60),\"Высокий риск\")))","v":false}]
["Смена места жительства",null,null,null,null,null,{"$f":"'Обработка результатов'!T5","v":0}]
["Система контроля в семье",null,null,null,null,null,{"$f":"'Обработка результатов'!T6","v":0}]
["Конфликтность в семье",null,null,null,null,null,{"$f":"'Обработка результатов'!T7","v":0}]
["Индивидуальные:",null,null,null,null,null,null,{"$f":"'Обработка результатов'!T8","v":0}]
["Успешность",null,null,null,null,null,{"$f":"'Обработка результатов'!T9","v":0},{"$f":"IF(AND(H12>=23,H12<=39),\"Низкий риск\",IF(AND(H12>=40,H12<=49),\"Средний риск\",IF(AND(H12>=50,H12<=92),\"Высокий риск\")))","v":false}]
["Отношение к употреблению психоактивных веществ",null,null,null,null,null,{"$f":"'Обработка результатов'!T10","v":0}]
["Отношение к насилию",null,null,null,null,null,{"$f":"'Обработка результатов'!T11","v":0}]
["Протестные реакции",null,null,null,null,null,{"$f":"'Обработка результатов'!T12","v":0}]
["Наличие позитивных жизненных ориентиров",null,null,null,null,null,{"$f":"'Обработка результатов'!T13","v":0}]
["Опыт употребления психоактивных веществ",null,null,null,null,null,{"$f":"'Обработка результатов'!T14","v":0}]
["Наличие кризисных ситуаций",null,null,null,null,null,{"$f":"'Обработка результатов'!T15","v":0}]
["Взаимоотношения со сверстниками:",null,null,null,null,null,null,{"$f":"'Обработка результатов'!T16","v":0}]
["Влияние среды. Ассоциирование с асоциальным поведением",null,null,null,null,null,{"$f":"'Обработка результатов'!T17","v":0},{"$f":"IF(AND(H20>=9,H20<=15),\"Низкий риск\",IF(AND(H20>=16,H20<=19),\"Средний риск\",IF(AND(H20>=20,H20<=36),\"Высокий риск\")))","v":false}]
["Социально - психологический климат микросреды",null,null,null,null,null,{"$f":"'Обработка результатов'!T19","v":0}]
["Общественные (социальные):",null,null,null,null,null,null,{"$f":"'Обработка результатов'!T20","v":0}]
["Участие в общественной деятельности",null,null,null,null,null,{"$f":"'Обработка результатов'!T21","v":0},{"$f":"IF(AND(H23>=15,H23<=26),\"Низкий риск\",IF(AND(H23>=27,H23<=32),\"Средний риск\",IF(AND(H23>=33,H23<=60),\"Высокий риск\")))","v":false}]
["Отношение к религии",null,null,null,null,null,{"$f":"'Обработка результатов'!T22","v":0}]
["Доступность психоактивных веществ",null,null,null,null,null,{"$f":"'Обработка результатов'!T23","v":0}]
["Социальная «близость» с потребителями психоактивных веществ",null,null,null,null,null,{"$f":"'Обработка результатов'!T24","v":0}]
["Связь с микросоциумом",null,null,null,null,null,{"$f":"'Обработка результатов'!T26","v":0}]
["Школьные:",null,null,null,null,null,null,{"$f":"'Обработка результатов'!T27","v":0}]
["Успеваемость",null,null,null,null,null,{"$f":"'Обработка результатов'!T28","v":0},{"$f":"IF(AND(H29>=15,H29<=26),\"Низкий риск\",IF(AND(H29>=27,H29<=32),\"Средний риск\",IF(AND(H29>=33,H29<=60),\"Высокий риск\")))","v":false}]
["Посещаемость",null,null,null,null,null,{"$f":"'Обработка результатов'!T29","v":0}]
["Участие в школьном самоуправлении",null,null,null,null,null,{"$f":"'Обработка результатов'!T30","v":0}]
["Организация школьного досуга",null,null,null,null,null,{"$f":"'Обработка результатов'!T31","v":0}]
["Отношения с учителями",null,null,null,null,null,{"$f":"'Обработка результатов'!T32","v":0}]
["Социально-психологический климат",null,null,null,null,null,{"$f":"'Обработка результатов'!T33","v":0}]
["Интерес к учебе",null,null,null,null,null,{"$f":"'Обработка результатов'!T34","v":0}]
["Смена школы",null,null,null,null,null,{"$f":"'Обработка результатов'!T35","v":0}]
["Связь семьи и школы",null,null,null,null,null,{"$f":"'Обработка результатов'!T36","v":0}]
[]
["Итоговый уровень риска:",null,null,null,{"$f":"SUM(H29,H23,H20,H12,H7)","v":0},{"$f":"IF(AND(E40>=138,E40<=168),\"Низкий уровень риска\",IF(AND(E40>=27,E40<=32),\"Средний уровень риска\",IF(AND(E40>=169,E40<=308),\"Высокий уровень риска\")))","v":false}]